bitfinex/quotes_BTCUSD_20250129
["timestamp","ask_amount","ask_price","bid_price","bid_amount"]
[1738110685956,0.49934519,101600.0,101590.0,0.00529883]
[1738110686162,0.40198843,101600.0,101590.0,0.00529883]
[1738110686788,0.35658843,101600.0,101590.0,0.00529883]
[1738110688116,0.62958843,101600.0,101590.0,0.00529883]
[1738110689268,0.63969348,101600.0,101590.0,0.00529883]
[1738110691300,0.63969348,101600.0,101590.0,0.00029883]
[1738110691526,0.74105024,101600.0,101590.0,0.00029883]
[1738110691747,0.73705024,101600.0,101590.0,0.00029883]
[1738110692290,0.74105024,101600.0,101590.0,0.00029883]
[1738110700584,0.74953024,101600.0,101590.0,0.00029883]
[1738110704006,0.91423851,101600.0,101590.0,8.3e-07]
[1738110704220,0.419366,101580.0,101570.0,0.00029862]
[1738110704436,0.7839623,101580.0,101570.0,0.00029862]
[1738110705498,0.7839623,101580.0,101570.0,0.00045129]
[1738110705933,0.7849623,101580.0,101570.0,0.00045129]
[1738110708653,0.7839623,101580.0,101570.0,0.00045129]
[1738110709245,0.7909623,101580.0,101570.0,0.00145129]
[1738110710655,0.8109623,101580.0,101570.0,0.00145129]
[1738110710862,0.83110886,101580.0,101570.0,0.00145129]
[1738110712325,0.68344286,101580.0,101550.0,0.00029841]
[1738110712539,0.25940327,101560.0,101550.0,0.00080706]
[1738110712747,0.45138677,101560.0,101550.0,0.00080706]
[1738110714881,0.45238677,101560.0,101550.0,0.00080706]
[1738110715297,0.35764643,101560.0,101550.0,0.00080706]
[1738110715511,0.35764643,101560.0,101550.0,0.08340706]
[1738110717365,0.36769933,101560.0,101550.0,0.08340706]
[1738110722472,0.36769933,101560.0,101550.0,0.00080706]
[1738110728222,0.09824316,101560.0,101550.0,0.12730706]
[1738110728437,0.001,101560.0,101550.0,0.27600172]
[1738110728648,0.001,101560.0,101550.0,0.39526022]
[1738110728859,0.001,101560.0,101550.0,0.68749292]
[1738110729287,0.0553577,101580.0,101570.0,0.1227]
[1738110729965,0.02962453,101580.0,101570.0,0.1227]
[1738110732009,0.08646511,101580.0,101570.0,0.1227]
[1738110732411,0.02962453,101580.0,101570.0,0.1227]
[1738110732645,0.03062453,101580.0,101570.0,0.1227]
[1738110733411,0.03062453,101580.0,101570.0,0.65331674]
[1738110733596,0.03062453,101580.0,101570.0,0.68281931]
[1738110734688,0.02962453,101580.0,101570.0,0.68281931]
[1738110735102,0.02941063,101600.0,101580.0,0.173]
[1738110735313,0.04779227,101600.0,101590.0,0.64245327]
[1738110735511,0.04779227,101600.0,101590.0,0.64146916]
[1738110735905,0.04779227,101600.0,101590.0,0.75317743]
[1738110736336,0.04779227,101600.0,101590.0,0.1275]
[1738110736460,0.36299094,101610.0,101590.0,0.27530139]
[1738110737507,0.16614994,101610.0,101590.0,0.27530139]
[1738110737740,0.01852394,101610.0,101600.0,0.147637]
[1738110737946,0.0001423,101610.0,101600.0,0.14862112]
[1738110738154,0.0001423,101610.0,101600.0,0.22812112]
[1738110738341,0.0021423,101610.0,101600.0,0.227137]
[1738110738785,0.0001423,101610.0,101600.0,0.227137]
[1738110738992,0.0001423,101610.0,101600.0,0.229137]
[1738110741055,0.0001423,101610.0,101600.0,0.0815]
[1738110741260,0.0001423,101610.0,101600.0,0.229137]
[1738110741835,0.1477653,101610.0,101600.0,0.0815]
[1738110742035,0.0001423,101610.0,101600.0,0.0815]
[1738110743144,0.0001423,101610.0,101600.0,0.2301211]
[1738110743359,0.0001423,101610.0,101600.0,0.229137]
[1738110743993,0.0001423,101610.0,101600.0,0.252137]
[1738110753727,0.01844806,101610.0,101600.0,0.252137]
[1738110753934,0.01844806,101610.0,101600.0,0.1045]
[1738110754152,0.16607106,101610.0,101600.0,0.0815]
[1738110754365,0.27777933,101610.0,101600.0,0.002]
[1738110755403,0.27777933,101610.0,101590.0,0.12635139]
[1738110755404,0.47461433,101610.0,101590.0,0.12635139]
[1738110755618,0.48565228,101610.0,101590.0,0.27400339]
[1738110755832,0.48765228,101610.0,101590.0,0.27400339]
[1738110756070,0.15,101590.0,101580.0,0.00029883]
[1738110756316,0.15,101590.0,101560.0,0.05]
[1738110756317,0.147695,101560.0,101550.0,0.04568596]
[1738110756528,0.09724316,101560.0,101550.0,0.12358596]
[1738110756760,0.21157272,101560.0,101550.0,0.04619461]
[1738110757009,0.65324427,101570.0,101550.0,0.04619461]
[1738110757220,0.35664643,101560.0,101550.0,0.04619461]
[1738110757432,0.35664643,101560.0,101550.0,0.00050865]
[1738110757859,0.50664643,101560.0,101550.0,0.00050865]
[1738110758092,0.60400319,101560.0,101550.0,0.00050865]
[1738110759148,0.71571146,101560.0,101550.0,0.00050865]
[1738110759370,0.71571146,101560.0,101550.0,0.00150865]
[1738110759554,0.79551146,101560.0,101550.0,0.00050865]
[1738110759849,0.79651146,101560.0,101550.0,0.00050865]
[1738110763493,0.81668992,101560.0,101550.0,0.00050865]
[1738110764975,0.81668992,101560.0,101550.0,0.00065095]
[1738110773075,0.84593799,101560.0,101550.0,0.00065095]
[1738110774796,0.81668992,101560.0,101550.0,0.00065095]
[1738110776243,0.73688992,101560.0,101550.0,0.00065095]
[1738110776376,0.73718896,101560.0,101550.0,0.00065095]
[1738110776767,0.74113296,101560.0,101550.0,0.00065095]
[1738110778518,0.74961296,101560.0,101550.0,0.00065095]
[1738110779970,0.52812393,101560.0,101550.0,0.00065095]
[1738110780164,0.6398322,101560.0,101550.0,0.00065095]
[1738110784113,0.53660393,101560.0,101550.0,0.00065095]
[1738110786948,0.6483122,101560.0,101550.0,0.00065095]
[1738110789501,0.14771,101550.0,101540.0,0.00018612]
[1738110789701,0.56572646,101550.0,101540.0,0.00069467]
[1738110790591,0.56572646,101550.0,101540.0,0.03132185]
[1738110790997,0.56572646,101550.0,101540.0,0.03232185]
[1738110793144,0.71572646,101550.0,101540.0,0.03232185]
[1738110793821,0.71572646,101550.0,101540.0,0.00169467]
[1738110794047,0.71572646,101550.0,101540.0,0.03234216]
[1738110794244,0.72552881,101550.0,101540.0,0.03234216]
[1738110796331,0.72552881,101550.0,101540.0,0.00169467]
[1738110796581,0.72552881,101550.0,101540.0,0.03233859]
[1738110797533,0.62817205,101550.0,101540.0,0.03233859]
[1738110798522,0.62817205,101550.0,101540.0,0.00169467]
[1738110799385,0.51646378,101550.0,101540.0,0.03233782]
[1738110800228,0.51676261,101550.0,101540.0,0.03233782]
[1738110801067,0.51676261,101550.0,101540.0,0.00169467]
[1738110801281,0.61411937,101550.0,101540.0,0.00169467]
[1738110801740,0.72582764,101550.0,101540.0,0.00169467]
[1738110809861,0.82722764,101550.0,101540.0,0.00169467]
[1738110810712,1.50091144,101550.0,101540.0,0.00169467]
[1738110810904,1.50091144,101550.0,101540.0,0.00069467]
[1738110811242,1.56385398,101550.0,101540.0,6.7e-07]
[1738110811460,1.60965398,101550.0,101540.0,6.7e-07]
[1738110811897,1.60965398,101550.0,101540.0,0.00014297]
[1738110812052,1.60965398,101550.0,101540.0,9.7e-07]
[1738110812685,0.776325,101540.0,101530.0,8e-07]
[1738110812895,0.320739,101530.0,101520.0,8e-08]
[1738110813135,0.7234987,101530.0,101520.0,0.00050824]
[1738110813349,1.413867,101530.0,101520.0,2.4e-07]
[1738110813509,1.068847,101530.0,101520.0,2.4e-07]
[1738110813762,1.16620376,101530.0,101520.0,2.4e-07]
[1738110814178,1.17120376,101530.0,101520.0,2.4e-07]
[1738110814584,1.2261463,101530.0,101520.0,2.4e-07]
[1738110815759,1.17120376,101530.0,101520.0,2.4e-07]
[1738110815957,0.173,101520.0,101510.0,0.00025886]
[1738110816218,0.73876965,101520.0,101510.0,0.00076671]
[1738110816341,0.78816965,101520.0,101510.0,0.00076671]
[1738110816757,0.86526965,101520.0,101510.0,0.00076671]
[1738110818104,0.6194137,101520.0,101510.0,0.00076671]
[1738110818308,0.36618543,101520.0,101510.0,0.00076671]
[1738110818512,0.4778937,101520.0,101510.0,0.07746671]
[1738110818921,0.36618543,101520.0,101510.0,0.07746671]
[1738110819159,0.4778937,101520.0,101510.0,0.07746671]
[1738110819363,0.4694137,101520.0,101510.0,0.07746671]
[1738110819544,0.35770543,101520.0,101510.0,0.07746671]
[1738110820388,0.50770543,101520.0,101510.0,0.07746671]
[1738110820599,0.50770543,101520.0,101510.0,0.12366671]
[1738110821473,0.001,101520.0,101510.0,0.27241977]
[1738110821687,0.001,101520.0,101510.0,0.27143471]
[1738110823225,0.11170827,101530.0,101520.0,0.229754]
[1738110824795,0.25944727,101530.0,101520.0,0.231754]
[1738110824910,0.11170827,101530.0,101520.0,0.231754]
[1738110825992,0.46628121,101540.0,101520.0,0.231754]
[1738110826195,0.25944427,101540.0,101530.0,0.192939]
[1738110826416,0.25944427,101540.0,101530.0,0.273639]
[1738110826623,0.25944427,101540.0,101530.0,0.1259]
[1738110826820,0.35668743,101540.0,101530.0,0.1259]
[1738110827235,0.35768743,101540.0,101520.0,0.0807]
[1738110827453,0.45643827,101530.0,101520.0,0.228454]
[1738110828026,0.45643827,101530.0,101520.0,0.0807]
[1738110828495,0.64362107,101530.0,101520.0,0.0807]
[1738110830194,0.64362107,101530.0,101520.0,0.0827]
[1738110830392,0.64362107,101530.0,101520.0,0.0807]
[1738110830820,0.64462107,101530.0,101520.0,0.0807]
[1738110834705,0.64462107,101530.0,101520.0,0.0808424]
[1738110834906,0.64492011,101530.0,101520.0,0.0808424]
[1738110835607,0.65499768,101530.0,101520.0,0.0808424]
[1738110836279,0.56505804,101530.0,101520.0,0.0808424]
[1738110837149,0.56505804,101530.0,101520.0,0.0001424]
[1738110839697,0.71505804,101530.0,101520.0,0.0001424]
[1738110845620,0.71505804,101530.0,101520.0,0.2303964]
[1738110845621,0.01137661,101530.0,101520.0,0.2303964]
[1738110845841,0.00129904,101530.0,101520.0,0.2798964]
[1738110846896,0.00029904,101530.0,101520.0,0.2798964]
[1738110847106,0.00029904,101530.0,101520.0,0.2818964]
[1738110848206,0.00029904,101530.0,101520.0,0.43269092]
[1738110848419,0.00029904,101530.0,101520.0,0.69439919]
[1738110848833,0.00029883,101550.0,101520.0,0.45069092]
[1738110849038,0.00029883,101550.0,101540.0,0.269425]
[1738110850804,0.00129883,101550.0,101540.0,0.269425]
[1738110852155,0.00129883,101550.0,101540.0,0.39717761]
[1738110853732,0.00129883,101550.0,101540.0,0.65888588]
[1738110853733,0.00029883,101550.0,101540.0,0.65888588]
[1738110853940,0.00029883,101550.0,101540.0,0.68388588]
[1738110854164,0.00029904,101560.0,101550.0,0.55581827]
[1738110854385,0.00029904,101560.0,101550.0,0.79527915]
[1738110854596,0.08835998,101590.0,101580.0,0.147666]
[1738110854835,0.08835998,101590.0,101580.0,0.274366]
[1738110855084,0.08835998,101590.0,101580.0,0.48331743]
[1738110855282,0.0001423,101610.0,101600.0,0.147637]
[1738110856643,0.0001423,101610.0,101590.0,0.621649]
[1738110856864,0.0001423,101610.0,101600.0,0.147637]
[1738110857325,0.0041423,101610.0,101600.0,0.147637]
[1738110857742,0.0001423,101610.0,101600.0,0.147637]
[1738110858023,0.0051423,101610.0,101600.0,0.147637]
[1738110858222,0.0001423,101610.0,101600.0,0.147637]
[1738110858441,0.11185057,101610.0,101590.0,0.621654]
[1738110858654,0.0051423,101610.0,101600.0,0.147637]
[1738110859855,0.0001423,101610.0,101600.0,0.147637]
[1738110860237,0.0041423,101610.0,101600.0,0.147637]
[1738110860417,0.0001423,101610.0,101600.0,0.147637]
[1738110860845,0.0041423,101610.0,101600.0,0.147637]
[1738110861051,0.0001423,101610.0,101600.0,0.147637]
[1738110861421,0.0011423,101610.0,101600.0,0.147637]
[1738110863202,0.0011423,101610.0,101590.0,0.621665]
[1738110863338,0.0011423,101610.0,101600.0,0.147637]
[1738110864053,0.0011423,101610.0,101600.0,0.1982211]
[1738110864288,0.0011423,101610.0,101600.0,0.197237]
[1738110868791,0.12154532,101620.0,101600.0,0.197237]
[1738110869001,0.12154532,101620.0,101600.0,0.590929]
[1738110869725,0.00983705,101620.0,101610.0,0.147623]
[1738110869922,0.00983705,101620.0,101600.0,0.394079]
[1738110870120,0.0001423,101610.0,101600.0,0.197237]
[1738110871534,0.11185057,101610.0,101600.0,0.0496]
[1738110871963,0.0001423,101610.0,101600.0,0.0496]
[1738110872141,0.11185057,101610.0,101600.0,0.0496]
[1738110872346,0.0001423,101610.0,101600.0,0.0496]
[1738110873400,0.344498,101600.0,101580.0,0.12650785]
[1738110873605,0.11170827,101600.0,101580.0,0.66892112]
[1738110873844,0.55356173,101610.0,101580.0,0.47203212]
[1738110874057,0.37106013,101610.0,101590.0,0.147646]
[1738110874273,0.45618486,101610.0,101600.0,0.002]
[1738110874475,0.45618486,101610.0,101590.0,0.344515]
[1738110874476,0.44185146,101610.0,101590.0,0.344515]
[1738110874678,0.55355973,101610.0,101590.0,0.147646]
[1738110874872,0.55355973,101610.0,101580.0,0.47604585]
[1738110875092,0.147638,101600.0,101580.0,0.47104585]
[1738110875226,0.55355973,101610.0,101580.0,0.47104585]
[1738110875227,0.75040173,101610.0,101580.0,0.66793385]
[1738110875435,0.147639,101600.0,101580.0,0.47104585]
[1738110875843,0.75040173,101610.0,101590.0,0.147652]
[1738110876076,0.75040173,101610.0,101580.0,0.86480285]
[1738110876276,0.75040173,101610.0,101580.0,0.66792385]
[1738110876478,0.55355973,101610.0,101600.0,0.002]
[1738110876674,0.44185146,101610.0,101600.0,0.002]
[1738110876882,0.24501846,101610.0,101600.0,0.002]
[1738110877395,0.44184946,101610.0,101590.0,0.344517]
[1738110877621,0.44184946,101610.0,101590.0,0.147648]
[1738110877821,0.44184946,101610.0,101590.0,0.346517]
[1738110877980,0.44184946,101610.0,101590.0,0.344517]
[1738110878181,0.55355773,101610.0,101590.0,0.344517]
[1738110878382,0.55355773,101610.0,101600.0,0.002]
[1738110879625,0.3445,101600.0,101580.0,0.27416885]
[1738110879779,0.45620827,101600.0,101580.0,0.30451012]
[1738110879977,0.45620827,101600.0,101590.0,0.002]
[1738110880270,0.45620827,101600.0,101580.0,0.27416885]
[1738110880448,0.45620827,101600.0,101580.0,0.30454114]
[1738110880584,0.45620827,101600.0,101580.0,0.50142914]
[1738110881291,0.45620827,101600.0,101590.0,0.005]
[1738110881496,0.45620827,101600.0,101580.0,0.47105685]
[1738110881699,0.45620827,101600.0,101580.0,0.50145398]
[1738110882103,0.11170827,101600.0,101590.0,0.00029862]
[1738110882313,0.55355773,101610.0,101590.0,0.14893389]
[1738110882465,0.0001423,101610.0,101600.0,0.147637]
[1738110882673,0.0001423,101610.0,101600.0,0.2294212]
[1738110882881,0.0001423,101610.0,101600.0,0.228437]
[1738110883509,0.0001423,101610.0,101600.0,0.25887329]
[1738110884123,0.0001423,101610.0,101600.0,0.26087329]
[1738110887630,0.0001423,101610.0,101600.0,0.31027329]
[1738110887867,0.0001423,101610.0,101600.0,0.55751645]
[1738110888084,0.0001423,101610.0,101600.0,0.66922472]
[1738110888495,0.0001423,101610.0,101600.0,0.55751645]
[1738110888943,0.25479119,101620.0,101610.0,0.147623]
[1738110889164,0.25479119,101620.0,101610.0,0.17805929]
[1738110890153,0.25579119,101620.0,101610.0,0.17805929]
[1738110890971,0.25479119,101620.0,101610.0,0.17805929]
[1738110891375,0.25579119,101620.0,101610.0,0.17805929]
[1738110891595,0.25479119,101620.0,101610.0,0.17805929]
[1738110892026,0.25479119,101620.0,101610.0,0.18005929]
[1738110893040,0.25479119,101620.0,101610.0,0.25745929]
[1738110893460,0.0103751,101640.0,101620.0,0.588608]
[1738110893667,0.1579571,101640.0,101620.0,0.61904429]
[1738110894272,0.0103751,101640.0,101630.0,0.147594]
[1738110894506,0.0103751,101640.0,101630.0,0.25543029]
[1738110894720,0.1579541,101640.0,101630.0,0.03094414]
[1738110894931,0.36690553,101640.0,101630.0,0.03094414]
[1738110895137,0.54030668,101640.0,101630.0,0.03094414]
[1738110895348,0.53630668,101640.0,101630.0,0.00050785]
[1738110895775,0.64901495,101640.0,101630.0,0.00050785]
[1738110895994,0.44650553,101640.0,101630.0,0.00050785]
[1738110904690,0.36790553,101640.0,101630.0,0.00050785]
[1738110907594,0.1589541,101640.0,101630.0,0.00050785]
[1738110908832,0.0113751,101640.0,101630.0,0.14810185]
[1738110909062,0.00129904,101640.0,101630.0,0.14810185]
[1738110909299,0.00129904,101640.0,101630.0,0.22450185]
[1738110915340,0.00129904,101640.0,101630.0,0.07690785]
[1738110915341,0.26058631,101640.0,101630.0,0.07690785]
[1738110915536,0.55650618,101640.0,101630.0,0.00050785]
[1738110915756,0.35782947,101640.0,101630.0,0.00050785]
[1738110915938,0.2461212,101640.0,101630.0,0.00050785]
[1738110916146,0.35782947,101640.0,101630.0,0.00050785]
[1738110916902,0.00129904,101640.0,101630.0,0.14810185]
[1738110917104,0.00129904,101640.0,101630.0,0.1490857]
[1738110917315,0.00129904,101640.0,101630.0,0.14810185]
[1738110918272,0.00129904,101640.0,101630.0,0.1490857]
[1738110919599,0.00129904,101640.0,101630.0,0.2307857]
[1738110919800,0.00129904,101640.0,101630.0,0.22980185]
[1738110925570,0.00029904,101640.0,101630.0,0.22980185]
[1738110927432,0.00029904,101640.0,101630.0,0.23180185]
[1738110928406,0.00029904,101640.0,101630.0,0.27930185]
[1738110928617,0.00029904,101640.0,101630.0,0.37654501]
[1738110928833,0.00029904,101640.0,101630.0,0.55701593]
[1738110930087,0.00029904,101640.0,101630.0,0.45977277]
[1738110934446,0.00029904,101640.0,101630.0,0.55701593]
[1738110934706,0.00029904,101640.0,101630.0,0.6687242]
[1738110934913,0.00029904,101640.0,101630.0,0.6917242]
[1738110935329,0.00029904,101660.0,101650.0,0.422265]
[1738110935540,0.00029904,101660.0,101650.0,0.51950816]
[1738110935750,0.00029904,101660.0,101650.0,0.54996044]
[1738110937459,0.00029904,101660.0,101650.0,0.51950816]
[1738110937656,0.00029904,101660.0,101650.0,0.52450816]
[1738110939451,0.11200731,101660.0,101650.0,0.005]
[1738110939665,0.29870376,101660.0,101650.0,0.005]
[1738110940465,0.25955731,101660.0,101650.0,0.005]
[1738110940910,0.25955731,101660.0,101630.0,0.75709435]
[1738110941072,0.147566,101650.0,101630.0,0.65755751]
[1738110941266,0.45630931,101660.0,101650.0,0.001]
[1738110941467,0.55355247,101660.0,101650.0,0.001]
[1738110944428,0.65090923,101660.0,101650.0,0.001]
[1738110944673,0.55355247,101660.0,101650.0,0.001]
[1738110948107,0.56364478,101660.0,101650.0,0.001]
[1738110949472,0.64424478,101660.0,101650.0,0.001]
[1738110954426,0.56364478,101660.0,101650.0,0.001]
[1738110956916,0.64174478,101660.0,101650.0,0.001]
[1738110957458,0.73910154,101660.0,101650.0,0.001]
[1738110959870,0.64174478,101660.0,101650.0,0.001]
[1738110961458,0.66114733,101660.0,101650.0,0.001]
[1738110964329,0.58304733,101660.0,101650.0,0.001]
[1738110965307,0.56364478,101660.0,101650.0,0.001]
[1738110974781,0.46640162,101660.0,101650.0,0.001]
[1738110975031,0.01039135,101660.0,101650.0,0.12868368]
[1738110975209,0.11200731,101660.0,101650.0,0.1277]
[1738110975887,0.25955731,101660.0,101650.0,0.1277]
[1738110976299,0.25848535,101660.0,101650.0,0.1277]
[1738110976739,0.35650143,101660.0,101650.0,0.001]
[1738110981418,0.37661653,101660.0,101650.0,0.001]
[1738110981602,0.35650143,101660.0,101650.0,0.001]
[1738110987743,0.11170827,101660.0,101650.0,0.1251]
[1738110988282,0.11170827,101660.0,101650.0,0.12539883]
[1738110988476,0.11185057,101660.0,101650.0,0.12539883]
[1738110989523,0.25940057,101660.0,101650.0,0.12539883]
[1738110990718,0.35664373,101660.0,101650.0,0.00129883]
[1738111003282,0.45400049,101660.0,101650.0,0.00129883]
[1738111004533,0.35664373,101660.0,101650.0,0.00129883]
[1738111008316,0.37659644,101660.0,101650.0,0.00129883]
[1738111011881,0.37659644,101660.0,101650.0,0.00029883]
[1738111012324,0.1496923,101660.0,101650.0,0.07649883]
[1738111012743,0.22296629,101660.0,101650.0,0.07649883]
[1738111013184,0.07541629,101660.0,101650.0,0.22406383]
[1738111013385,0.07541629,101660.0,101650.0,0.27256383]
[1738111013923,0.29624028,101660.0,101650.0,0.12499883]
[1738111014573,0.3586162,101660.0,101650.0,0.00029883]
[1738111014889,0.43192726,101660.0,101650.0,0.00029883]
[1738111015094,0.3586162,101660.0,101650.0,0.00029883]
[1738111015400,0.3566162,101660.0,101650.0,0.00029883]
[1738111015556,0.3566162,101660.0,101650.0,0.00129883]
[1738111015759,0.3566162,101660.0,101650.0,0.00029883]
[1738111016164,0.3586162,101660.0,101650.0,0.00029883]
[1738111016610,0.38652512,101660.0,101650.0,0.00029883]
[1738111017821,0.3586162,101660.0,101650.0,0.00029883]
[1738111020964,0.61340739,101660.0,101650.0,0.00029883]
[1738111034576,0.64833155,101660.0,101650.0,0.00029883]
[1738111039596,0.47778594,101660.0,101650.0,0.12929883]
[1738111039788,0.40448349,101660.0,101650.0,0.12929883]
[1738111039988,0.55108839,101660.0,101650.0,0.12929883]
[1738111044646,0.47778594,101660.0,101650.0,0.12929883]
[1738111044824,0.55108839,101660.0,101650.0,0.12929883]
[1738111052221,0.721634,101660.0,101650.0,0.00029883]
[1738111052425,0.64833155,101660.0,101650.0,0.00029883]
[1738111056871,0.871634,101660.0,101650.0,0.00029883]
[1738111057265,0.951634,101660.0,101650.0,0.00029883]
[1738111057710,0.69684281,101660.0,101650.0,0.00029883]
[1738111057909,0.79419957,101660.0,101650.0,0.00029883]
[1738111058635,0.81400293,101660.0,101650.0,0.00029883]
[1738111059503,0.83700293,101660.0,101650.0,0.00029883]
[1738111059736,0.88520293,101660.0,101650.0,0.00029883]
[1738111059948,0.69154372,101660.0,101650.0,0.00029883]
[1738111060150,0.56334372,101660.0,101650.0,0.00029883]
[1738111060353,0.78934617,101660.0,101650.0,0.00029883]
[1738111060569,0.78734617,101660.0,101650.0,0.00029883]
[1738111060931,0.79234617,101660.0,101650.0,0.00029883]
[1738111061157,0.88970293,101660.0,101650.0,0.00029883]
[1738111065581,0.4671699,101650.0,101640.0,0.00024645]
[1738111065763,0.56441306,101650.0,101640.0,0.00024645]
[1738111067135,0.56541306,101650.0,101640.0,0.00024645]
[1738111067313,0.66276982,101650.0,101640.0,0.00024645]
[1738111067764,0.56541306,101650.0,101640.0,0.00024645]
[1738111067998,0.46911061,101650.0,101640.0,0.00024645]
[1738111068221,0.46911061,101650.0,101640.0,0.12484645]
[1738111068222,0.22186745,101650.0,101640.0,0.12484645]
[1738111068427,0.22186745,101650.0,101640.0,0.27242545]
[1738111068428,0.40270245,101650.0,101640.0,0.27242545]
[1738111068848,0.55026745,101650.0,101640.0,0.27242545]
[1738111069202,0.55026745,101650.0,101640.0,0.12484645]
[1738111070471,0.64762421,101650.0,101640.0,0.12484645]
[1738111070647,0.68602345,101650.0,101640.0,0.12484645]
[1738111070955,0.69596881,101650.0,101640.0,0.12484645]
[1738111072357,0.69611111,101650.0,101640.0,0.12484645]
[1738111079079,0.69511111,101650.0,101640.0,0.12484645]
[1738111079234,0.69511111,101650.0,101640.0,0.12684645]
[1738111080513,0.59775435,101650.0,101640.0,0.12684645]
[1738111080733,0.33848766,101650.0,101640.0,0.2754093]
[1738111080948,0.33848766,101650.0,101640.0,0.27442545]
[1738111081116,0.3285423,101650.0,101640.0,0.27442545]
[1738111082301,0.0001423,101650.0,101640.0,0.27442545]
[1738111082516,0.0001423,101650.0,101640.0,0.6563703]
[1738111082731,0.0001423,101650.0,101640.0,0.6868991]
[1738111083590,0.0001423,101660.0,101650.0,0.297565]
[1738111083815,0.0001423,101660.0,101650.0,0.68623865]
[1738111084977,0.0001422,101670.0,101660.0,0.44625]
[1738111085195,0.0001422,101670.0,101660.0,0.57402196]
[1738111086375,0.0001422,101670.0,101660.0,0.66272365]
[1738111086579,0.0001422,101670.0,101660.0,0.66372365]
[1738111087268,0.0001422,101670.0,101660.0,0.55202196]
[1738111087483,0.0001422,101670.0,101660.0,0.55102196]
[1738111087893,0.0001422,101670.0,101660.0,0.55802196]
[1738111088913,0.0001422,101670.0,101660.0,0.58102196]
[1738111089431,0.0001422,101670.0,101660.0,0.71285186]
[1738111089612,0.0001422,101670.0,101660.0,0.70585186]
[1738111090190,0.0011422,101670.0,101660.0,0.71485186]
[1738111090584,0.0011422,101670.0,101660.0,0.68432306]
[1738111094931,0.0011422,101670.0,101660.0,0.78760806]
[1738111097629,0.0001423,101690.0,101670.0,0.023]
[1738111097879,0.0001423,101690.0,101680.0,0.61419294]
[1738111098085,0.0001423,101690.0,101680.0,1.59570404]
[1738111098290,0.0001423,101690.0,101680.0,1.65125159]
[1738111098932,0.0001423,101690.0,101680.0,1.6514043]
[1738111099152,0.0001423,101690.0,101680.0,1.67327089]
[1738111099360,0.0001424,101700.0,101690.0,0.56047896]
[1738111099566,0.0001424,101700.0,101690.0,0.65772212]
[1738111099769,0.0001424,101700.0,101690.0,0.68801299]
[1738111099976,0.0001424,101700.0,101690.0,0.6661464]
[1738111100201,0.0001424,101700.0,101690.0,0.64088972]
[1738111100829,0.0001424,101700.0,101690.0,0.64988972]
[1738111101303,0.0001424,101700.0,101690.0,0.48489716]
[1738111105113,0.0001422,101710.0,101700.0,0.0812]
[1738111105318,0.0001422,101710.0,101700.0,0.48187013]
[1738111105536,0.0001422,101710.0,101700.0,0.48088716]
[1738111106452,0.0001422,101710.0,101700.0,0.48788716]
[1738111106631,0.0001422,101710.0,101700.0,0.62258885]
[1738111107867,0.0001422,101710.0,101700.0,0.51088716]
[1738111109480,0.0001422,101710.0,101700.0,0.48788716]
[1738111110294,0.0001422,101710.0,101700.0,0.49753025]
[1738111110688,0.0001422,101710.0,101700.0,0.48788716]
[1738111111716,0.0001422,101710.0,101700.0,0.40668716]
[1738111112102,0.0001422,101710.0,101700.0,0.35748716]
[1738111112512,0.0001422,101710.0,101700.0,0.35048716]
[1738111113052,0.0001422,101710.0,101700.0,0.35448716]
[1738111113270,0.0001422,101710.0,101700.0,0.253244]
[1738111113271,0.11184389,101710.0,101700.0,0.253244]
[1738111113468,0.0001422,101710.0,101700.0,0.28358936]
[1738111113669,0.0001422,101710.0,101700.0,0.28758936]
[1738111114176,0.0001422,101710.0,101700.0,0.257244]
[1738111114542,0.0001422,101710.0,101700.0,0.28761747]
[1738111115035,0.21507789,101710.0,101700.0,0.03437347]
[1738111115248,0.11184389,101710.0,101700.0,0.004]
[1738111115458,0.0001422,101710.0,101700.0,0.107244]
[1738111116022,0.0001422,101710.0,101700.0,0.004]
[1738111116554,0.0001422,101710.0,101700.0,0.13765105]
[1738111119190,0.0001422,101710.0,101700.0,0.13794967]
[1738111121024,0.11184389,101710.0,101700.0,0.13794967]
[1738111121196,0.21507789,101710.0,101700.0,0.03470567]
[1738111121426,0.11184389,101710.0,101700.0,0.13794967]
[1738111122035,0.0001422,101710.0,101700.0,0.13794967]
[1738111123263,0.1512762,101710.0,101700.0,0.03470567]
[1738111123848,0.0480422,101710.0,101700.0,0.13794967]
[1738111126278,0.0001422,101710.0,101700.0,0.23617601]
[1738111126607,0.0001422,101710.0,101700.0,0.23519283]
[1738111127683,0.0001422,101710.0,101700.0,0.28449283]
[1738111128117,0.0001422,101710.0,101700.0,0.51529283]
[1738111129414,0.0001422,101710.0,101700.0,0.51129283]
[1738111129859,0.0001422,101710.0,101700.0,0.51829283]
[1738111131885,0.0001422,101710.0,101700.0,0.43749283]
[1738111132495,0.0001422,101710.0,101700.0,0.43049283]
[1738111132811,0.0001422,101710.0,101700.0,0.43449283]
[1738111133165,0.0001422,101710.0,101700.0,0.43049283]
[1738111133509,0.0001422,101710.0,101700.0,0.43449283]
[1738111134366,0.0001422,101710.0,101700.0,0.43049283]
[1738111135782,0.0001422,101710.0,101700.0,0.43449283]
[1738111136542,0.0001422,101710.0,101700.0,0.43049283]
[1738111136944,0.0001422,101710.0,101700.0,0.43749283]
[1738111142327,0.11184389,101710.0,101700.0,0.03770567]
[1738111142535,0.3729205,101710.0,101700.0,0.03770567]
[1738111142933,0.3729205,101710.0,101700.0,0.00729862]
[1738111143617,0.34007789,101710.0,101700.0,0.00729862]
[1738111143826,0.34007789,101710.0,101700.0,0.00029862]
[1738111144048,0.34007789,101710.0,101700.0,0.00429862]
[1738111145609,0.34007789,101710.0,101700.0,0.00029862]
[1738111146865,0.1251422,101710.0,101700.0,0.00029862]
[1738111147074,0.0789422,101710.0,101700.0,0.00029862]
[1738111147485,0.29387789,101710.0,101700.0,0.00029862]
[1738111148985,0.29387789,101710.0,101700.0,0.00129862]
[1738111149164,0.29387789,101710.0,101700.0,0.00029862]
[1738111149800,0.30369779,101710.0,101700.0,0.00029862]
[1738111150021,0.29387789,101710.0,101700.0,0.00029862]
[1738111153397,0.1033762,101710.0,101700.0,0.00029862]
[1738111154444,0.0001422,101710.0,101700.0,0.282969]
[1738111154654,0.0001422,101710.0,101700.0,0.28198578]
[1738111155407,0.0001422,101710.0,101700.0,0.10354262]
[1738111155627,0.11184389,101710.0,101700.0,0.00129862]
[1738111155835,0.11184389,101710.0,101700.0,0.10454262]
[1738111156047,0.21507789,101710.0,101700.0,0.00129862]
[1738111161260,0.4284796,101710.0,101690.0,0.24054799]
[1738111161467,0.35272489,101710.0,101690.0,0.24054799]
[1738111162551,0.49037189,101710.0,101690.0,0.24055799]
[1738111162757,0.35272489,101710.0,101690.0,0.24155799]
[1738111162963,0.01840548,101700.0,101690.0,0.24155799]
[1738111164112,0.50014192,101710.0,101690.0,0.138673]